[Event "137th Varsity Match 2019"]
[Site "London"]
[Date "2019.03.02"]
[Round "1.3"]
[White "Schut, Lisa"]
[Black "Murphy, Conor E"]
[Result "1/2-1/2"]
[ECO "C56"]
[WhiteElo "2259"]
[BlackElo "2361"]
[Annotator "NA RC"]
[PlyCount "125"]
[EventDate "2019.03.02"]
[EventType "team-tourn"]
[EventCountry "ENG"]
[SourceTitle "playchess.com"]
[Source "ChessBase"]
[SourceQuality "1"]
[TimeControl "40/7200:3600"]

1. e4 {[%emt 0:00:02]} e5 {[%emt 0:00:13]} 2. Nf3 {[%emt 0:00:06]} Nc6 {[%emt 0:00:06]} 3. Bc4 {[%emt 0:00:06]} Nf6 {[%emt 0:00:31]} 4. d4 {[%emt 0:00:08]} exd4 {[%emt 0:00:27]} 5. e5 {[%emt 0:00:06]} d5 {[%emt 0:00:11]} 6. Bb5 {[%emt 0:00:08]} Ne4 {[%emt 0:00:09]} 7. Nxd4 {[%emt 0:00:09]} Bc5 {[%emt 0:00:09]} 8. Be3 {[%emt 0:01:30]} O-O {[%emt 0:00:26]} 9. Nxc6 {[%emt 0:01:14]} bxc6 {[%emt 0:00:14]} 10. Bxc5 {[%emt 0:00:05]} Nxc5 {[%emt 0:00:09]} 11. Bxc6 {[%emt 0:00:05]} Rb8 {[%emt 0:00:20]} 12. Qxd5 {[%emt 0:07:31]} Qe7 {[%emt 0:00:51]} 13. O-O {[%emt 0:01:38]} Rxb2 {[%emt 0:20:03]} 14. Nc3 {[%emt 0:07:14]} Rd8 {[%emt 0:05:05]} 15. Qf3 {[%emt 0:02:18]} Ne6 {[%emt 0:01:59]} 16. Qe3 {[%emt 0:27:55]} Rxc2 {[%emt 0:26:30]} 17. Rac1 {[%emt 0:41:22]} Nd4 {[%emt 0:25:39]} 18. Be4 {[%emt 0:03:28]} Rxc1 {[%emt 0:03:00]} 19. Rxc1 {[%emt 0:00:05]} Be6 {[%emt 0:00:17]} 20. h3 {[%emt 0:03:33]} Qa3 {[%emt 0:05:35]} 21. Kh2 {[%emt 0:01:50]} c5 {[%emt 0:02:27]} 22. Bb1 {[%emt 0:01:33]} Rc8 {[%emt 0:08:40]} 23. Qd2 {[%emt 0:06:27]} h6 {[%emt 0:04:51]} 24. Ne4 {[%emt 0:00:47]} Bxh3 {[%emt 0:03:54]} 25. Rc3 {[%emt 0:01:50]} Qb4 {[%emt 0:00:12]} 26. Rxh3 {[%emt 0:05:08]} Qxb1 {[%emt 0:00:16]} 27. Nf6+ {[%emt 0:00:17]} Kf8 {[%emt 0:00:33]} 28. Nd7+ {[%emt 0:00:11]} Ke8 {[%emt 0:02:00]} 29. Nxc5 {[%emt 0:00:49]} Qc2 {[%emt 0:02:19]} 30. Qxd4 {[%emt 0:00:09]} Qxc5 {[%emt 0:00:03]} 31. Qg4 {[%emt 0:00:10]} Qxe5+ {[%emt 0:00:59]} 32. f4 {[%emt 0:00:01]} Rc4 {[%emt 0:00:15]} 33. Rf3 {[%emt 0:00:39]} g5 {[%emt 0:00:26]} 34. fxe5 {[%emt 0:00:15]} Rxg4 {[%emt 0:00:01]} 35. Ra3 {[%emt 0:00:09]} Re4 {[%emt 0:00:13]} 36. Ra5 {[%emt 0:00:05]} Re3 {[%emt 0:00:33]} 37. Kg1 {[%emt 0:00:05]} g4 {[%emt 0:00:14]} 38. Kf2 {[%emt 0:00:01]} Re4 {[%emt 0:00:01]} 39. Kg3 {[%emt 0:00:07]} Kf8 {[%emt 0:00:00]} 40. Rxa7 {[%emt 0:00:01]} Rxe5 {[%emt 0:00:05]} 41. Kxg4 {[%emt 1:00:03]} Rg5+ {[%emt 0:08:09]} 42. Kf3 {[%emt 0:00:00]} Rf5+ {[%emt 0:00:20]} 43. Ke3 {[%emt 0:00:00]} Rg5 {[%emt 0:00:52]} 44. Kf2 {[%emt 0:00:00]} Rf5+ {[%emt 0:00:07]} 45. Kg3 {[%emt 0:00:00]} Rg5+ {[%emt 0:00:08]} 46. Kh2 {[%emt 0:00:00]} Rh5+ {[%emt 0:00:51]} 47. Kg1 {[%emt 0:00:00]} Rc5 {[%emt 0:01:04]} 48. Ra4 {[%emt 0:00:00]} Rc2 {[%emt 0:02:31]} 49. Kh2 {[%emt 0:00:00]} Kg7 {[%emt 0:01:45]} 50. Rg4+ {[%emt 0:00:00]} Kf6 {[%emt 0:00:17]} 51. a4 {[%emt 0:00:00]} Ra2 {[%emt 0:00:22]} 52. Kh3 {[%emt 0:00:00]} h5 {[%emt 0:02:06]} 53. Rb4 {[%emt 0:00:00]} Kg5 {[%emt 0:00:37]} 54. Rb5+ {[%emt 0:00:00]} f5 {[%emt 0:00:25]} 55. Ra5 {[%emt 0:00:00]} Ra3+ {[%emt 0:01:24]} 56. Kh2 {[%emt 0:00:00]} Kg4 {[%emt 0:03:05]} 57. Ra8 {[%emt 0:00:00]} h4 {[%emt 0:03:18]} 58. a5 {[%emt 0:00:00]} Kf4 {[%emt 0:06:14]} 59. a6 {[%emt 0:00:00]} h3 {[%emt 0:00:46]} 60. a7 {[%emt 0:00:00]} hxg2 {[%emt 0:01:16]} 61. Kxg2 {[%emt 0:00:00]} Ra1 {[%emt 0:01:07]} 62. Kf2 {[%emt 0:00:00]} Ra2+ {[%emt 0:00:09]} 63. Kg1 {[%emt 0:00:00]} 1/2-1/2

[Event "137th Varsity Match 2019"]
[Site "London"]
[Date "2019.03.02"]
[Round "1.8"]
[White "Wei, Naomi"]
[Black "Mihov, Filip"]
[Result "0-1"]
[ECO "D26"]
[WhiteElo "1787"]
[BlackElo "2152"]
[Annotator "NA RC"]
[PlyCount "48"]
[EventDate "2019.03.02"]
[EventType "team-tourn"]
[EventCountry "ENG"]
[SourceTitle "playchess.com"]
[Source "ChessBase"]
[SourceQuality "1"]
[TimeControl "40/7200:3600"]

1. d4 {[%emt 0:00:02]} d5 {[%emt 0:00:12]} 2. c4 {[%emt 0:00:12]} dxc4 {[%emt 0:00:15]} 3. Nf3 {[%emt 0:00:13]} c5 {[%emt 0:00:30]} 4. e3 {[%emt 0:00:16]} cxd4 {[%emt 0:00:45]} 5. Bxc4 {[%emt 0:00:42]} Nc6 {[%emt 0:01:48]} 6. exd4 {[%emt 0:00:18]} e6 {[%emt 0:02:50]} 7. O-O {[%emt 0:00:32]} Nf6 {[%emt 0:00:54]} 8. Nc3 {[%emt 0:00:15]} Be7 {[%emt 0:00:31]} 9. Re1 {[%emt 0:11:41]} O-O {[%emt 0:01:32]} 10. a3 {[%emt 0:02:05]} b6 {[%emt 0:21:20]} 11. b4 {[%emt 0:21:18]} Bb7 {[%emt 0:05:11]} 12. Bb2 {[%emt 0:08:02]} Rc8 {[%emt 0:09:12]} 13. Qe2 {[%emt 0:31:59]} a5 {[%emt 0:18:50]} 14. b5 {[%emt 0:07:41]} Nxd4 {[%emt 0:09:23]} 15. Nxd4 {[%emt 0:01:02]} Qxd4 {[%emt 0:00:07]} 16. Nd5 {[%emt 0:10:51]} Qc5 {[%emt 0:03:11]} 17. Bd4 {[%emt 0:05:45]} Qd6 {[%emt 0:01:54]} 18. Nxe7+ {[%emt 0:02:43]} Qxe7 {[%emt 0:00:06]} 19. Bxb6 {[%emt 0:00:09]} Bxg2 {[%emt 0:00:16]} 20. Bxa5 {[%emt 0:01:18]} Qb7 {[%emt 0:00:05]} 21. Rac1 {[%emt 0:01:50]} Bh3 {[%emt 0:02:00]} 22. f4 {[%emt 0:00:45]} Qa7+ {[%emt 0:00:22]} 23. Qe3 {[%emt 0:00:08]} Qxa5 {[%emt 0:00:06]} 24. Qxh3 {[%emt 0:00:05]} Rxc4 {[%emt 0:00:37]} 0-1